[Event "Early-Titled-Tuesday-Blitz-March-26-2024"]
[Site "Chess.com"]
[Date "2024.03.26"]
[Round "8"]
[White "Durarbayli"]
[Black "DenLaz"]
[Result "0-1"]
[WhiteElo "2930"]
[BlackElo "3093"]
[TimeControl "180+1"]
[EndTime "9:25:47 PDT"]
[Termination "DenLaz won on time"]

1. e4 {[%clk 0:03:00.9]} 1... c5 {[%clk 0:02:59.9]} 2. Nf3 {[%clk 0:03:01.5]}
2... e6 {[%clk 0:03:00.3]} 3. d4 {[%clk 0:03:02.2]} 3... cxd4 {[%clk 0:03:01]}
4. Nxd4 {[%clk 0:03:03.1]} 4... Nc6 {[%clk 0:03:01.7]} 5. Nc3 {[%clk 0:03:03.8]}
5... Qc7 {[%clk 0:03:02.3]} 6. Be3 {[%clk 0:03:04.4]} 6... a6 {[%clk 0:03:02.9]}
7. Qf3 {[%clk 0:03:05]} 7... Ne5 {[%clk 0:03:01.3]} 8. Qg3 {[%clk 0:03:04.9]}
8... h5 {[%clk 0:03:01.9]} 9. O-O-O {[%clk 0:03:00.5]} 9... h4 {[%clk
0:02:53.4]} 10. Qh3 {[%clk 0:03:00]} 10... Ng6 {[%clk 0:02:54.1]} 11. Qf3 {[%clk
0:02:20.5]} 11... b5 {[%clk 0:02:51.4]} 12. g3 {[%clk 0:02:07.5]} 12... Bb7
{[%clk 0:02:48]} 13. Bd3 {[%clk 0:02:06.3]} 13... Nf6 {[%clk 0:02:46.9]} 14. Kb1
{[%clk 0:01:50.1]} 14... Rc8 {[%clk 0:02:40.1]} 15. Rhe1 {[%clk 0:01:38.2]}
15... Bb4 {[%clk 0:02:25.7]} 16. Bd2 {[%clk 0:01:38.3]} 16... Bc5 {[%clk
0:02:19.7]} 17. Nb3 {[%clk 0:01:25.5]} 17... Be7 {[%clk 0:02:19.2]} 18. a3
{[%clk 0:00:53.7]} 18... Ne5 {[%clk 0:02:14.5]} 19. Qe2 {[%clk 0:00:53.2]} 19...
Nc4 {[%clk 0:02:08]} 20. e5 {[%clk 0:00:43.4]} 20... Nd5 {[%clk 0:02:01.5]} 21.
Nxd5 {[%clk 0:00:38.9]} 21... Bxd5 {[%clk 0:02:00.9]} 22. Bb4 {[%clk 0:00:34.4]}
22... a5 {[%clk 0:01:19.3]} 23. Bxe7 {[%clk 0:00:32.9]} 23... Kxe7 {[%clk
0:01:20.2]} 24. Qg4 {[%clk 0:00:23.9]} 24... Kf8 {[%clk 0:01:18]} 25. Qd4 {[%clk
0:00:16.3]} 25... a4 {[%clk 0:01:08.3]} 26. Nd2 {[%clk 0:00:15.8]} 26... Qc5
{[%clk 0:00:55.2]} 27. Qxc5+ {[%clk 0:00:13.2]} 27... Rxc5 {[%clk 0:00:56.1]}
28. Bxc4 {[%clk 0:00:12.9]} 28... bxc4 {[%clk 0:00:55.6]} 29. Ne4 {[%clk
0:00:13]} 29... Bxe4 {[%clk 0:00:38.2]} 30. Rxe4 {[%clk 0:00:13.9]} 30... hxg3
{[%clk 0:00:38.7]} 31. hxg3 {[%clk 0:00:14.8]} 31... Ke7 {[%clk 0:00:38.9]} 32.
Red4 {[%clk 0:00:07]} 32... Rc7 {[%clk 0:00:38.3]} 33. g4 {[%clk 0:00:02.8]}
33... g5 {[%clk 0:00:36.3]} 34. f4 {[%clk 0:00:02.9]} 34... gxf4 {[%clk
0:00:34]} 35. Rxf4 {[%clk 0:00:03.8]} 35... Rc5 {[%clk 0:00:30.6]} 36. Rdf1
{[%clk 0:00:02.5]} 36... Rh7 {[%clk 0:00:30.3]} 37. Re4 {[%clk 0:00:01.8]} 37...
c3 {[%clk 0:00:28]} 38. bxc3 {[%clk 0:00:01.7]} 38... Rxc3 {[%clk 0:00:25.5]}
39. Rxa4 {[%clk 0:00:02]} 39... Rh2 {[%clk 0:00:16.1]} 40. Rd1 {[%clk
0:00:01.7]} 40... Rcxc2 {[%clk 0:00:14.2]} 41. Ra7 {[%clk 0:00:02.2]} 41... Rb2+
{[%clk 0:00:14.4]} 42. Ka1 {[%clk 0:00:02.8]} 42... Rbd2 {[%clk 0:00:11.1]} 43.
Rxd2 {[%clk 0:00:03]} 43... Rxd2 {[%clk 0:00:12]} 44. a4 {[%clk 0:00:03.7]}
44... Rd5 {[%clk 0:00:12.1]} 45. a5 {[%clk 0:00:04]} 45... Rxe5 {[%clk
0:00:11.9]} 46. Ra8 {[%clk 0:00:02.6]} 46... Rg5 {[%clk 0:00:08.3]} 47. a6
{[%clk 0:00:01.8]} 47... Rxg4 {[%clk 0:00:08.8]} 48. Kb2 {[%clk 0:00:02.3]}
48... Ra4 {[%clk 0:00:09.1]} 49. Kb3 {[%clk 0:00:02.9]} 49... Ra1 {[%clk
0:00:09.6]} 50. Kb4 {[%clk 0:00:03.4]} 50... f5 {[%clk 0:00:07.8]} 0-1

[Event "Early-Titled-Tuesday-Blitz-March-26-2024"]
[Site "Chess.com"]
[Date "2024.03.26"]
[Round "8"]
[White "eljanov"]
[Black "Rud_Makarian"]
[Result "0-1"]
[WhiteElo "2916"]
[BlackElo "3092"]
[TimeControl "180+1"]
[EndTime "9:25:48 PDT"]
[Termination "Rud_Makarian won on time"]

1. d4 {[%clk 0:03:00.9]} 1... Nf6 {[%clk 0:03:00.1]} 2. Bf4 {[%clk 0:03:01]}
2... c5 {[%clk 0:02:57.8]} 3. d5 {[%clk 0:03:00.6]} 3... b5 {[%clk 0:02:57.6]}
4. f3 {[%clk 0:02:55.7]} 4... d6 {[%clk 0:02:54.5]} 5. e4 {[%clk 0:02:55.5]}
5... b4 {[%clk 0:02:53.3]} 6. a3 {[%clk 0:02:52.7]} 6... g6 {[%clk 0:02:50.9]}
7. axb4 {[%clk 0:02:42.4]} 7... cxb4 {[%clk 0:02:51.8]} 8. Nd2 {[%clk
0:02:36.2]} 8... Bg7 {[%clk 0:02:51]} 9. Nc4 {[%clk 0:02:34.4]} 9... O-O {[%clk
0:02:51.4]} 10. Ne2 {[%clk 0:02:28.3]} 10... Ba6 {[%clk 0:02:43.9]} 11. Nd4
{[%clk 0:02:26.4]} 11... Qc7 {[%clk 0:02:43.8]} 12. b3 {[%clk 0:02:22.4]} 12...
Nfd7 {[%clk 0:02:33.1]} 13. Be3 {[%clk 0:02:15.4]} 13... Rc8 {[%clk 0:02:04.6]}
14. Ra2 {[%clk 0:02:12.6]} 14... Nb6 {[%clk 0:01:50.2]} 15. Na5 {[%clk
0:02:10.4]} 15... Bxf1 {[%clk 0:01:37.9]} 16. Kxf1 {[%clk 0:02:02.7]} 16... Qd7
{[%clk 0:01:27.2]} 17. Kf2 {[%clk 0:01:47.7]} 17... Rc3 {[%clk 0:01:09.6]} 18.
Ne2 {[%clk 0:01:37.2]} 18... Rc8 {[%clk 0:01:02.3]} 19. Qd2 {[%clk 0:01:34.9]}
19... e6 {[%clk 0:00:50]} 20. Rd1 {[%clk 0:01:32]} 20... exd5 {[%clk 0:00:49.1]}
21. exd5 {[%clk 0:01:32.6]} 21... Qb5 {[%clk 0:00:39]} 22. Nf4 {[%clk
0:01:14.4]} 22... N8d7 {[%clk 0:00:34.7]} 23. Nc6 {[%clk 0:01:14.1]} 23... Bc3
{[%clk 0:00:21.2]} 24. Qe2 {[%clk 0:01:06]} 24... Qxe2+ {[%clk 0:00:21.4]} 25.
Nxe2 {[%clk 0:01:06.4]} 25... Nxd5 {[%clk 0:00:17.8]} 26. Rxd5 {[%clk
0:01:03.6]} 26... Rxc6 {[%clk 0:00:17.9]} 27. Nxc3 {[%clk 0:01:04.2]} 27... Rxc3
{[%clk 0:00:15.7]} 28. Rxd6 {[%clk 0:01:04.4]} 28... Nf8 {[%clk 0:00:15.3]} 29.
Bd2 {[%clk 0:00:58.9]} 29... Rc7 {[%clk 0:00:12.6]} 30. Bxb4 {[%clk 0:00:58.9]}
30... Rac8 {[%clk 0:00:13.3]} 31. c3 {[%clk 0:00:50.6]} 31... Ne6 {[%clk
0:00:12.3]} 32. Rda6 {[%clk 0:00:50.2]} 32... Ra8 {[%clk 0:00:12.9]} 33. g3
{[%clk 0:00:48.3]} 33... h5 {[%clk 0:00:13.5]} 34. h4 {[%clk 0:00:48.1]} 34...
Ng7 {[%clk 0:00:12.7]} 35. R2a4 {[%clk 0:00:46.1]} 35... Nf5 {[%clk 0:00:12.7]}
36. c4 {[%clk 0:00:45.5]} 36... Rd7 {[%clk 0:00:12]} 37. Bc3 {[%clk 0:00:36.2]}
37... Rd3 {[%clk 0:00:10.6]} 38. Be1 {[%clk 0:00:29.9]} 38... Rb8 {[%clk
0:00:07]} 39. Rxa7 {[%clk 0:00:29.9]} 39... Rbxb3 {[%clk 0:00:07]} 40. Rb4
{[%clk 0:00:13.7]} 40... Rxf3+ {[%clk 0:00:06.9]} 41. Kg2 {[%clk 0:00:13.7]}
41... Rbd3 {[%clk 0:00:05.9]} 42. Ra8+ {[%clk 0:00:08]} 42... Kg7 {[%clk
0:00:05.2]} 43. Rbb8 {[%clk 0:00:02.2]} 43... Rfe3 {[%clk 0:00:05.3]} 44. Rg8+
{[%clk 0:00:02]} 44... Kf6 {[%clk 0:00:04.9]} 45. Bf2 {[%clk 0:00:02]} 45... Re2
{[%clk 0:00:05.1]} 46. Kf1 {[%clk 0:00:02.4]} 46... Rc2 {[%clk 0:00:05]} 47.
Ra6+ {[%clk 0:00:03]} 47... Ke7 {[%clk 0:00:04.9]} 0-1

[Event "Early-Titled-Tuesday-Blitz-March-26-2024"]
[Site "Chess.com"]
[Date "2024.03.26"]
[Round "8"]
[White "baki83"]
[Black "Jospem"]
[Result "1-0"]
[WhiteElo "2890"]
[BlackElo "3075"]
[TimeControl "180+1"]
[EndTime "9:25:51 PDT"]
[Termination "baki83 won on time"]

1. Nf3 {[%clk 0:03:00.1]} 1... c5 {[%clk 0:02:57.7]} 2. g3 {[%clk 0:02:59.5]}
2... Nc6 {[%clk 0:02:58.1]} 3. Bg2 {[%clk 0:02:59.6]} 3... g6 {[%clk 0:02:58.7]}
4. O-O {[%clk 0:02:59.7]} 4... Bg7 {[%clk 0:02:59.3]} 5. c3 {[%clk 0:03:00.5]}
5... e5 {[%clk 0:02:59.6]} 6. e4 {[%clk 0:02:59.9]} 6... Nge7 {[%clk 0:02:59.3]}
7. d3 {[%clk 0:03:00.4]} 7... O-O {[%clk 0:02:59.6]} 8. Be3 {[%clk 0:03:00.2]}
8... d6 {[%clk 0:03:00.1]} 9. Nbd2 {[%clk 0:02:59.1]} 9... h6 {[%clk 0:02:59.7]}
10. a4 {[%clk 0:02:53.5]} 10... f5 {[%clk 0:02:57.1]} 11. Qb3+ {[%clk
0:02:44.6]} 11... Kh8 {[%clk 0:02:54.2]} 12. exf5 {[%clk 0:02:28.4]} 12... gxf5
{[%clk 0:02:55.1]} 13. Nc4 {[%clk 0:02:28.8]} 13... Be6 {[%clk 0:02:41.5]} 14.
Rfe1 {[%clk 0:02:25.6]} 14... e4 {[%clk 0:02:29.2]} 15. Nfd2 {[%clk 0:02:09.1]}
15... d5 {[%clk 0:02:24.5]} 16. Na3 {[%clk 0:01:59.9]} 16... Na5 {[%clk
0:02:00.3]} 17. Qc2 {[%clk 0:01:56.4]} 17... Rc8 {[%clk 0:01:59.2]} 18. dxe4
{[%clk 0:01:49.3]} 18... fxe4 {[%clk 0:01:59.5]} 19. Rad1 {[%clk 0:01:49.1]}
19... Bg4 {[%clk 0:01:45.4]} 20. Nxe4 {[%clk 0:01:46.1]} 20... Bxd1 {[%clk
0:01:45]} 21. Rxd1 {[%clk 0:01:47]} 21... b6 {[%clk 0:01:39.8]} 22. Nb5 {[%clk
0:01:40.7]} 22... Nc4 {[%clk 0:01:38.1]} 23. Bf4 {[%clk 0:01:38.3]} 23... Ng6
{[%clk 0:01:13.8]} 24. b3 {[%clk 0:01:16.2]} 24... Nxf4 {[%clk 0:01:13.3]} 25.
gxf4 {[%clk 0:01:17.1]} 25... Qh4 {[%clk 0:00:37.9]} 26. Rxd5 {[%clk 0:01:11.4]}
26... Na5 {[%clk 0:00:33.3]} 27. Ned6 {[%clk 0:00:57.4]} 27... Rcd8 {[%clk
0:00:26]} 28. Rf5 {[%clk 0:00:57.2]} 28... Qe7 {[%clk 0:00:24.3]} 29. Rxf8+
{[%clk 0:00:51]} 29... Rxf8 {[%clk 0:00:25.2]} 30. Qg6 {[%clk 0:00:33.3]} 30...
Qf6 {[%clk 0:00:20.3]} 31. f5 {[%clk 0:00:27.7]} 31... Qxg6 {[%clk 0:00:17.8]}
32. fxg6 {[%clk 0:00:27.8]} 32... Bf6 {[%clk 0:00:13.5]} 33. Bd5 {[%clk
0:00:26.3]} 33... Be7 {[%clk 0:00:10.6]} 34. Bf7 {[%clk 0:00:22.2]} 34... Bxd6
{[%clk 0:00:10]} 35. Nxd6 {[%clk 0:00:22]} 35... Kg7 {[%clk 0:00:03.1]} 36. f4
{[%clk 0:00:15.4]} 36... Nc6 {[%clk 0:00:02.6]} 37. Ne8+ {[%clk 0:00:10]} 37...
Rxe8 {[%clk 0:00:03.1]} 38. Bxe8 {[%clk 0:00:10.9]} 38... Ne7 {[%clk 0:00:04]}
39. Kf2 {[%clk 0:00:09]} 39... Nd5 {[%clk 0:00:03.5]} 40. Kf3 {[%clk 0:00:08.3]}
40... Nxc3 {[%clk 0:00:03.7]} 41. Bf7 {[%clk 0:00:08.7]} 41... Kf6 {[%clk
0:00:03.8]} 42. Ke3 {[%clk 0:00:08.8]} 42... Na2 {[%clk 0:00:04]} 43. Kd3 {[%clk
0:00:08.7]} 43... Nb4+ {[%clk 0:00:04.7]} 44. Kc4 {[%clk 0:00:09.3]} 44... a6
{[%clk 0:00:04.8]} 45. h4 {[%clk 0:00:09.5]} 45... Nc6 {[%clk 0:00:04.4]} 46.
Kd5 {[%clk 0:00:09.3]} 46... Na5 {[%clk 0:00:04.8]} 47. Kd6 {[%clk 0:00:08.9]}
47... Kg7 {[%clk 0:00:04.3]} 48. Kc7 {[%clk 0:00:08.3]} 48... Kf6 {[%clk
0:00:05.2]} 49. Kxb6 {[%clk 0:00:08.3]} 49... Nxb3 {[%clk 0:00:06]} 50. Bxb3
{[%clk 0:00:08.1]} 50... c4 {[%clk 0:00:06.9]} 51. Bxc4 {[%clk 0:00:08.3]} 51...
Kxg6 {[%clk 0:00:07.8]} 52. Kxa6 {[%clk 0:00:08.8]} 1-0

[Event "Early-Titled-Tuesday-Blitz-March-26-2024"]
[Site "Chess.com"]
[Date "2024.03.26"]
[Round "8"]
[White "babyking1205"]
[Black "sansanathalia"]
[Result "1-0"]
[WhiteElo "2640"]
[BlackElo "2424"]
[TimeControl "180+1"]
[EndTime "9:25:51 PDT"]
[Termination "babyking1205 won on time"]

1. e4 {[%clk 0:03:00.9]} 1... c5 {[%clk 0:02:58.9]} 2. Nc3 {[%clk 0:03:00.4]}
2... e6 {[%clk 0:02:57.3]} 3. Nge2 {[%clk 0:02:44.8]} 3... d5 {[%clk 0:02:56.2]}
4. d3 {[%clk 0:02:45.2]} 4... Nc6 {[%clk 0:02:46.1]} 5. g3 {[%clk 0:02:45.1]}
5... Nf6 {[%clk 0:02:41.6]} 6. Bg2 {[%clk 0:02:44.4]} 6... dxe4 {[%clk
0:02:40.5]} 7. Nxe4 {[%clk 0:02:44]} 7... Be7 {[%clk 0:02:35.2]} 8. O-O {[%clk
0:02:41]} 8... O-O {[%clk 0:02:31.5]} 9. Be3 {[%clk 0:02:32.2]} 9... Nd4 {[%clk
0:02:21]} 10. c3 {[%clk 0:02:07.1]} 10... Nxe2+ {[%clk 0:02:11.6]} 11. Qxe2
{[%clk 0:02:08]} 11... Qc7 {[%clk 0:02:09.9]} 12. Rad1 {[%clk 0:02:08]} 12...
Rb8 {[%clk 0:02:04.4]} 13. Rfe1 {[%clk 0:02:02.2]} 13... Nd5 {[%clk 0:01:57.2]}
14. Bc1 {[%clk 0:01:59.8]} 14... f5 {[%clk 0:01:46.1]} 15. Ng5 {[%clk
0:01:52.1]} 15... Bxg5 {[%clk 0:01:33]} 16. Bxg5 {[%clk 0:01:49.1]} 16... Ra8
{[%clk 0:01:24.4]} 17. c4 {[%clk 0:01:33]} 17... Nb4 {[%clk 0:01:21.4]} 18. Bf4
{[%clk 0:01:28.3]} 18... Qd7 {[%clk 0:01:15.5]} 19. d4 {[%clk 0:01:21.3]} 19...
cxd4 {[%clk 0:01:11.4]} 20. Qd2 {[%clk 0:01:20]} 20... Nc6 {[%clk 0:01:10.6]}
21. b4 {[%clk 0:01:16.2]} 21... a6 {[%clk 0:01:06]} 22. b5 {[%clk 0:01:13.8]}
22... axb5 {[%clk 0:01:04.6]} 23. cxb5 {[%clk 0:01:14.7]} 23... Ne7 {[%clk
0:01:04.2]} 24. Qb4 {[%clk 0:00:55.9]} 24... Ng6 {[%clk 0:00:56.3]} 25. Rxd4
{[%clk 0:00:44.7]} 25... Qf7 {[%clk 0:00:51.6]} 26. Bd6 {[%clk 0:00:43]} 26...
Rd8 {[%clk 0:00:48.4]} 27. a4 {[%clk 0:00:34.9]} 27... Ne7 {[%clk 0:00:30.3]}
28. Bxe7 {[%clk 0:00:17]} 28... Rxd4 {[%clk 0:00:29.4]} 29. Qxd4 {[%clk
0:00:17.6]} 29... Qxe7 {[%clk 0:00:28.8]} 30. Rd1 {[%clk 0:00:18.5]} 30... Kf7
{[%clk 0:00:25.4]} 31. Qd8 {[%clk 0:00:15.5]} 31... Qxd8 {[%clk 0:00:09.3]} 32.
Rxd8 {[%clk 0:00:11.1]} 32... Ke7 {[%clk 0:00:06.6]} 33. Rh8 {[%clk 0:00:10.9]}
33... h6 {[%clk 0:00:05.8]} 34. a5 {[%clk 0:00:10.5]} 34... Kd7 {[%clk
0:00:04.6]} 35. a6 {[%clk 0:00:10.8]} 35... Ra7 {[%clk 0:00:03.2]} 36. Rg8
{[%clk 0:00:09]} 36... g5 {[%clk 0:00:01.9]} 37. Rg7+ {[%clk 0:00:08]} 37... Kd6
{[%clk 0:00:02.3]} 38. axb7 {[%clk 0:00:04.5]} 38... Bxb7 {[%clk 0:00:01.6]} 39.
Rxb7 {[%clk 0:00:04.2]} 39... Ra1+ {[%clk 0:00:02.5]} 40. Bf1 {[%clk 0:00:04.4]}
40... Rb1 {[%clk 0:00:03]} 41. Rb6+ {[%clk 0:00:04.9]} 41... Ke5 {[%clk
0:00:02.8]} 42. Kg2 {[%clk 0:00:04.9]} 42... f4 {[%clk 0:00:03.3]} 43. gxf4+
{[%clk 0:00:03.5]} 43... gxf4 {[%clk 0:00:04.2]} 44. Be2 {[%clk 0:00:03.1]}
44... Rb2 {[%clk 0:00:04.1]} 45. Bf3 {[%clk 0:00:03.4]} 45... Rb3 {[%clk
0:00:03.9]} 46. Rb7 {[%clk 0:00:03.3]} 46... Rb1 {[%clk 0:00:03.3]} 47. b6
{[%clk 0:00:03.8]} 47... Rb2 {[%clk 0:00:02.7]} 48. Rb8 {[%clk 0:00:04.3]} 48...
Rb4 {[%clk 0:00:02.7]} 49. b7 {[%clk 0:00:05]} 49... Rb1 {[%clk 0:00:02.8]} 50.
Rd8 {[%clk 0:00:05.2]} 1-0

[Event "Early-Titled-Tuesday-Blitz-March-26-2024"]
[Site "Chess.com"]
[Date "2024.03.26"]
[Round "8"]
[White "dodorox"]
[Black "jcmesafischer"]
[Result "0-1"]
[WhiteElo "2123"]
[BlackElo "2360"]
[TimeControl "180+1"]
[EndTime "9:25:51 PDT"]
[Termination "jcmesafischer won on time"]

1. d4 {[%clk 0:02:53.5]} 1... Nf6 {[%clk 0:02:26]} 2. c4 {[%clk 0:02:53.1]} 2...
e6 {[%clk 0:00:54.2]} 3. Nc3 {[%clk 0:02:51.7]} 3... Bb4 {[%clk 0:00:54.2]} 4.
Bd2 {[%clk 0:02:52.1]} 4... Bxc3 {[%clk 0:00:53.3]} 5. Bxc3 {[%clk 0:02:52]}
5... d5 {[%clk 0:00:54.2]} 6. e3 {[%clk 0:02:51]} 6... Ne4 {[%clk 0:00:53.5]} 7.
Rc1 {[%clk 0:02:50.2]} 7... O-O {[%clk 0:00:51.2]} 8. Nf3 {[%clk 0:02:48.9]}
8... b6 {[%clk 0:00:46.3]} 9. cxd5 {[%clk 0:02:48.8]} 9... exd5 {[%clk
0:00:46.1]} 10. Bd3 {[%clk 0:02:46.2]} 10... Ba6 {[%clk 0:00:32.2]} 11. Bxa6
{[%clk 0:02:26.9]} 11... Nxa6 {[%clk 0:00:12.9]} 12. Qa4 {[%clk 0:02:27.4]}
12... Qc8 {[%clk 0:00:12.5]} 13. O-O {[%clk 0:02:24]} 13... Qb7 {[%clk
0:00:12.6]} 14. b4 {[%clk 0:02:13]} 14... b5 {[%clk 0:00:12.4]} 15. Qa5 {[%clk
0:02:06.6]} 15... c6 {[%clk 0:00:11.3]} 16. Be1 {[%clk 0:01:51]} 16... f6 {[%clk
0:00:10.1]} 17. Nd2 {[%clk 0:01:34.3]} 17... Nd6 {[%clk 0:00:08.9]} 18. Qa3
{[%clk 0:01:19.9]} 18... Nb8 {[%clk 0:00:08.6]} 19. Qc3 {[%clk 0:01:17.5]} 19...
Rc8 {[%clk 0:00:05.6]} 20. f3 {[%clk 0:01:11.3]} 20... Nd7 {[%clk 0:00:05]} 21.
Bg3 {[%clk 0:01:09.1]} 21... Nc4 {[%clk 0:00:04.5]} 22. Nxc4 {[%clk 0:01:08.6]}
22... bxc4 {[%clk 0:00:05.4]} 23. a4 {[%clk 0:01:05.9]} 23... a5 {[%clk
0:00:04.3]} 24. Rb1 {[%clk 0:01:04]} 24... axb4 {[%clk 0:00:02.2]} 25. Rxb4
{[%clk 0:01:04.6]} 25... Qa6 {[%clk 0:00:02.8]} 26. Rfb1 {[%clk 0:01:02.2]}
26... Re8 {[%clk 0:00:03]} 27. Rb7 {[%clk 0:00:59.6]} 27... Nf8 {[%clk
0:00:02.8]} 28. R7b4 {[%clk 0:00:51.4]} 28... Qc8 {[%clk 0:00:02.9]} 29. Ra1
{[%clk 0:00:44.8]} 29... Qe6 {[%clk 0:00:03.2]} 30. Bf2 {[%clk 0:00:44.5]} 30...
Ra6 {[%clk 0:00:03.5]} 31. a5 {[%clk 0:00:42.7]} 31... Rea8 {[%clk 0:00:04.1]}
32. Rb6 {[%clk 0:00:40.7]} 32... f5 {[%clk 0:00:04.2]} 33. g3 {[%clk 0:00:33.6]}
33... Qc8 {[%clk 0:00:04.4]} 34. Qb4 {[%clk 0:00:30.5]} 34... Nd7 {[%clk
0:00:04.6]} 35. Rxa6 {[%clk 0:00:25.2]} 35... Qxa6 {[%clk 0:00:03.9]} 36. Qd6
{[%clk 0:00:22.5]} 36... Qb7 {[%clk 0:00:04]} 37. a6 {[%clk 0:00:18.2]} 37...
Qc8 {[%clk 0:00:04.3]} 38. a7 {[%clk 0:00:17.7]} 38... Nf6 {[%clk 0:00:04.2]}
39. Qc5 {[%clk 0:00:14]} 39... Qc7 {[%clk 0:00:03.9]} 40. Qa5 {[%clk 0:00:12.6]}
40... Qxa5 {[%clk 0:00:03.3]} 41. Rxa5 {[%clk 0:00:13.5]} 41... Nd7 {[%clk
0:00:03.6]} 42. Be1 {[%clk 0:00:12.9]} 42... Kf7 {[%clk 0:00:03.6]} 43. Bb4
{[%clk 0:00:12.7]} 43... Nb6 {[%clk 0:00:04]} 44. Kf2 {[%clk 0:00:10.8]} 44...
Nc8 {[%clk 0:00:04.3]} 45. Bc5 {[%clk 0:00:11.2]} 45... Ke6 {[%clk 0:00:04.8]}
46. Ke2 {[%clk 0:00:10.4]} 46... Kd7 {[%clk 0:00:05.4]} 47. Kd2 {[%clk
0:00:10.7]} 47... Kc7 {[%clk 0:00:06]} 48. Ra6 {[%clk 0:00:09.4]} 48... Kb7
{[%clk 0:00:06.4]} 49. Ra1 {[%clk 0:00:09.4]} 49... Nxa7 {[%clk 0:00:07]} 50.
Rb1+ {[%clk 0:00:08.7]} 50... Nb5 {[%clk 0:00:06.8]} 51. Bb4 {[%clk 0:00:06.2]}
51... Ra2+ {[%clk 0:00:07.2]} 52. Ke1 {[%clk 0:00:04.6]} 52... Rxh2 {[%clk
0:00:07.7]} 53. Bc5 {[%clk 0:00:02.2]} 53... Rh1+ {[%clk 0:00:08.1]} 0-1

[Event "Early-Titled-Tuesday-Blitz-March-26-2024"]
[Site "Chess.com"]
[Date "2024.03.26"]
[Round "8"]
[White "Agibileg"]
[Black "Savagelittlemole"]
[Result "1-0"]
[WhiteElo "2762"]
[BlackElo "2502"]
[TimeControl "180+1"]
[EndTime "9:25:52 PDT"]
[Termination "Agibileg won by resignation"]

1. d4 {[%clk 0:03:00.9]} 1... Nf6 {[%clk 0:02:59.9]} 2. c4 {[%clk 0:03:00.9]}
2... c5 {[%clk 0:03:00.1]} 3. d5 {[%clk 0:03:00.5]} 3... e6 {[%clk 0:03:00.3]}
4. Nc3 {[%clk 0:03:00.1]} 4... exd5 {[%clk 0:03:00.8]} 5. cxd5 {[%clk 0:03:01]}
5... d6 {[%clk 0:03:01.4]} 6. e4 {[%clk 0:03:01.6]} 6... g6 {[%clk 0:03:01.8]}
7. Bd3 {[%clk 0:03:02.1]} 7... Bg7 {[%clk 0:03:02.1]} 8. h3 {[%clk 0:03:02.2]}
8... O-O {[%clk 0:03:02.1]} 9. Nf3 {[%clk 0:03:02.9]} 9... Na6 {[%clk
0:03:01.3]} 10. O-O {[%clk 0:03:02.2]} 10... Nc7 {[%clk 0:03:01.7]} 11. Bf4
{[%clk 0:03:00.6]} 11... Rb8 {[%clk 0:02:58.6]} 12. a4 {[%clk 0:02:47.4]} 12...
Re8 {[%clk 0:02:32]} 13. Re1 {[%clk 0:02:45.5]} 13... Nh5 {[%clk 0:02:19.1]} 14.
Bh2 {[%clk 0:02:44]} 14... a6 {[%clk 0:02:16.2]} 15. e5 {[%clk 0:02:32.1]} 15...
dxe5 {[%clk 0:02:09.4]} 16. Nxe5 {[%clk 0:02:33]} 16... Bd7 {[%clk 0:01:37.1]}
17. a5 {[%clk 0:02:11.2]} 17... b5 {[%clk 0:01:34.5]} 18. axb6 {[%clk
0:01:55.9]} 18... Rxb6 {[%clk 0:01:33.5]} 19. Nc4 {[%clk 0:01:51.7]} 19... Rb4
{[%clk 0:01:23.8]} 20. d6 {[%clk 0:01:43.9]} 20... Rxe1+ {[%clk 0:01:21.8]} 21.
Qxe1 {[%clk 0:01:43.3]} 21... Ne6 {[%clk 0:01:21.7]} 22. Rxa6 {[%clk 0:01:36]}
22... Nhf4 {[%clk 0:01:10.7]} 23. Bxf4 {[%clk 0:01:21.4]} 23... Nxf4 {[%clk
0:01:10.2]} 24. Bf1 {[%clk 0:01:21.6]} 24... Qg5 {[%clk 0:00:53.1]} 25. Ra8+
{[%clk 0:01:18.2]} 25... Bf8 {[%clk 0:00:44.1]} 26. g3 {[%clk 0:01:09]} 26...
Ne6 {[%clk 0:00:13.6]} 27. Ne5 {[%clk 0:00:57.5]} 27... Nd4 {[%clk 0:00:12.6]}
28. Rxf8+ {[%clk 0:00:49.2]} 28... Kxf8 {[%clk 0:00:12.1]} 29. Nxd7+ {[%clk
0:00:49.8]} 29... Kg7 {[%clk 0:00:10]} 30. Qe5+ {[%clk 0:00:49.9]} 30... Qxe5
{[%clk 0:00:09.1]} 31. Nxe5 {[%clk 0:00:50.8]} 31... Kf6 {[%clk 0:00:08.1]} 32.
d7 {[%clk 0:00:50.8]} 32... Ke7 {[%clk 0:00:08.5]} 33. Nd5+ {[%clk 0:00:50.3]}
33... Kd8 {[%clk 0:00:07.3]} 34. Nxb4 {[%clk 0:00:50.6]} 34... cxb4 {[%clk
0:00:08.2]} 35. Nxf7+ {[%clk 0:00:46.8]} 35... Kxd7 {[%clk 0:00:08.1]} 36. Ng5
{[%clk 0:00:43.6]} 36... h6 {[%clk 0:00:07.8]} 37. Ne4 {[%clk 0:00:43.2]} 37...
Ke6 {[%clk 0:00:06.9]} 38. Bc4+ {[%clk 0:00:39.8]} 38... Ke5 {[%clk 0:00:07.3]}
39. Nd2 {[%clk 0:00:38.6]} 39... Nc6 {[%clk 0:00:04.7]} 40. Nf3+ {[%clk
0:00:35.5]} 40... Ke4 {[%clk 0:00:03.8]} 41. Kg2 {[%clk 0:00:35.2]} 41... Na5
{[%clk 0:00:02.4]} 42. Bf7 {[%clk 0:00:35.5]} 42... g5 {[%clk 0:00:02.7]} 43. b3
{[%clk 0:00:31.8]} 43... Kd3 {[%clk 0:00:03.1]} 44. h4 {[%clk 0:00:26.9]} 44...
gxh4 {[%clk 0:00:03.2]} 45. gxh4 {[%clk 0:00:24.8]} 45... Kc3 {[%clk 0:00:03.9]}
46. Ne5 {[%clk 0:00:22.9]} 46... Nxb3 {[%clk 0:00:03.9]} 47. Bxb3 {[%clk
0:00:20.8]} 47... Kxb3 {[%clk 0:00:04.8]} 48. Nc6 {[%clk 0:00:21.3]} 48... Kc4
{[%clk 0:00:02.9]} 49. Nxb4 {[%clk 0:00:22.2]} 49... Kxb4 {[%clk 0:00:03.8]} 50.
Kf3 {[%clk 0:00:21.9]} 50... Kc5 {[%clk 0:00:04.4]} 51. Kg4 {[%clk 0:00:22.8]}
51... Kd5 {[%clk 0:00:04.1]} 52. Kh5 {[%clk 0:00:23.4]} 52... Ke6 {[%clk
0:00:03.1]} 53. Kxh6 {[%clk 0:00:24]} 53... Kf6 {[%clk 0:00:03.6]} 54. h5 {[%clk
0:00:23.7]} 54... Kf7 {[%clk 0:00:02.9]} 55. Kg5 {[%clk 0:00:24.3]} 1-0